fUSD/lending_fUSD_20240101
["ID","MTS","AMOUNT","RATE_DAILY","PERIOD"]
[309770735,1704109843944,-606.34556144,0.00035616,2]
[309770736,1704109843954,-536.87157279,0.00035616,2]
[309770737,1704109843963,-500.0,0.00035616,2]
[309770738,1704109843972,-597.40112306,0.00035616,2]
[309770739,1704109843981,-533.48352426,0.00035616,2]
[309770740,1704109843991,-514.07009261,0.00035616,2]
[309770741,1704109844000,-500.0,0.00035616,2]
[309770742,1704109844009,-500.0,0.00035616,2]
[309770743,1704109844018,-500.0,0.00035616,2]
[309770744,1704109844027,-523.87275506,0.00035616,2]
[309770745,1704109844037,-530.73360525,0.00035616,2]
[309770746,1704109844046,-591.47075137,0.00035616,2]
[309770747,1704109844055,-500.0,0.00035616,2]
[309770748,1704109844064,-500.0,0.00035616,2]
[309770749,1704109844074,-542.32806741,0.00035616,2]
[309770750,1704109844087,-500.0,0.00035616,2]
[309770751,1704109844096,-556.65496271,0.00035616,2]
[309770752,1704109844106,-500.0,0.00035616,2]
[309770753,1704109844116,-777.48,0.00035616,2]
[309770754,1704109844125,-522.60776659,0.00035616,2]
[309770755,1704109844138,-572.43460184,0.00035616,2]
[309770756,1704109844147,-500.0,0.00035616,2]
[309770757,1704109844157,-519.26924175,0.00035616,2]
[309770758,1704109844167,-500.0,0.00035616,2]
[309770759,1704109844176,-500.0,0.00035616,2]
[309770760,1704109844186,-506.74483352,0.00035616,2]
[309770761,1704109844196,-596.98847891,0.00035616,2]
[309770762,1704109844206,-500.0,0.00035616,2]
[309770763,1704109844215,-532.91447227,0.00035616,2]
[309770764,1704109844224,-500.0,0.00035616,2]
[309770765,1704109844234,-531.18513322,0.00035616,2]
[309770766,1704109844244,-524.4574622,0.00035616,2]
[309770767,1704109844253,-585.46013726,0.00035616,2]
[309770768,1704109844263,-500.0,0.00035616,2]
[309770769,1704109844273,-500.0,0.00035616,2]
[309770770,1704109844283,-500.0,0.00035616,2]
[309770771,1704109844293,-197.24123903,0.00035616,2]
[309770772,1704109844303,-500.0,0.00035616,2]
[309770773,1704109844313,-572.06039595,0.00035616,2]
[309770774,1704109844322,-525.28390298,0.00035616,2]
[309770775,1704109844332,-500.0,0.00035616,2]
[309770776,1704109844342,-500.0,0.00035616,2]
[309770777,1704109844352,-500.0,0.00035616,2]
[309770778,1704109844361,-519.51768451,0.00035616,2]
[309770779,1704109844371,-500.0,0.00035616,2]
[309770780,1704109844380,-542.75497342,0.00035616,2]
[309770781,1704109844390,-500.0,0.00035616,2]
[309770782,1704109844399,-500.0,0.00035616,2]
[309770783,1704109844408,-564.52242887,0.00035616,2]
[309770784,1704109844419,-541.24041093,0.00035616,2]
[309770785,1704109844428,-500.0,0.00035616,2]
[309770786,1704109844438,-570.58876058,0.00035616,2]
[309770787,1704109844449,-538.32789041,0.00035616,2]
[309770788,1704109844458,-557.94027478,0.00035616,2]
[309770789,1704109844467,-568.23709103,0.00035616,2]
[309770790,1704109844477,-528.25529496,0.00035616,2]
[309770791,1704109844487,-392.21576675,0.00035616,2]
[309770792,1704109844497,-500.0,0.00035616,2]
[309770793,1704109844507,-530.22138056,0.00035616,2]
[309770794,1704109844516,-500.0,0.00035616,2]
[309770795,1704109844525,-500.0,0.00035616,2]
[309770796,1704109844535,-531.19751668,0.00035616,2]
[309770797,1704109844544,-566.24353697,0.00035616,2]
[309770798,1704109844554,-500.0,0.00035616,2]
[309770799,1704109844563,-531.98120855,0.00035616,2]
[309770800,1704109844573,-500.0,0.00035616,2]
[309770801,1704109844582,-500.0,0.00035616,2]
[309770802,1704109844591,-512.45283685,0.00035616,2]
[309770803,1704109844600,-536.54411998,0.00035616,2]
[309770804,1704109844609,-500.0,0.00035616,2]
[309770805,1704109844618,-521.49466964,0.00035616,2]
[309770806,1704109844628,-507.13393415,0.00035616,2]
[309770807,1704109844637,-565.02895503,0.00035616,2]
[309770808,1704109844647,-548.13451761,0.00035616,2]
[309770809,1704109844656,-533.88460049,0.00035616,2]
[309770810,1704109844665,-500.0,0.00035616,2]
[309770811,1704109844675,-500.0,0.00035616,2]
[309770812,1704109844685,-560.41013146,0.00035616,2]
[309770813,1704109844694,-358.10305536,0.00035616,2]
[309770814,1704109844704,-549.20455795,0.00035616,2]
[309770815,1704109844714,-500.0,0.00035616,2]
[309770816,1704109844723,-500.0,0.00035616,2]
[309770817,1704109844732,-640.28191157,0.00035616,2]
[309770818,1704109844742,-579.75707294,0.00035616,2]
[309770819,1704109844752,-519.6345918,0.00035616,2]
[309770820,1704109844761,-556.51904858,0.00035616,2]
[309770821,1704109844770,-500.0,0.00035616,2]
[309770822,1704109844781,-500.0,0.00035616,2]
[309770823,1704109844790,-500.0,0.00035616,2]
[309770824,1704109844799,-500.0,0.00035616,2]
[309770825,1704109844808,-550.40659337,0.00035616,2]
[309770826,1704109844817,-514.97664867,0.00035616,2]
[309770827,1704109844826,-537.51704939,0.00035616,2]
[309770828,1704109844835,-500.0,0.00035616,2]
[309770829,1704109844844,-542.89086365,0.00035616,2]
[309770830,1704109844854,-552.24191783,0.00035616,2]
[309770831,1704109844863,-554.28459564,0.00035616,2]
[309770832,1704109844872,-550.56204961,0.00035616,2]
[309770833,1704109844881,-500.0,0.00035616,2]
[309770834,1704109844890,-564.17021683,0.00035616,2]
[309770835,1704109844899,-299.59072734,0.00035616,2]
[309770836,1704109844908,-537.5281739,0.00035616,2]
[309770837,1704109844917,-500.0,0.00035616,2]
[309770838,1704109844926,-500.0,0.00035616,2]
[309770839,1704109844936,-500.0,0.00035616,2]
[309770840,1704109844945,-512.30034845,0.00035616,2]
[309770841,1704109844954,-529.69060757,0.00035616,2]
[309770842,1704109844963,-563.91955002,0.00035616,2]
[309770843,1704109844972,-500.0,0.00035616,2]
[309770844,1704109844981,-500.0,0.00035616,2]
[309770845,1704109844990,-519.77289609,0.00035616,2]
[309770846,1704109844999,-1110.04,0.00035616,2]
[309770847,1704109845008,-516.76361047,0.00035616,2]
[309770848,1704109845017,-362.32020992,0.00035616,2]
[309770849,1704109845026,-512.17030715,0.00035616,2]
[309770850,1704109845036,-512.31752352,0.00035616,2]
[309770851,1704109845045,-500.0,0.00035616,2]
[309770852,1704109845055,-522.50493429,0.00035616,2]
[309770853,1704109845064,-500.0,0.00035616,2]
[309770854,1704109845073,-526.71366376,0.00035616,2]
[309770855,1704109845082,-500.0,0.00035616,2]
[309770856,1704109845091,-477.29458632,0.00035616,2]
[309770857,1704109845100,-525.70443048,0.00035616,2]
[309770858,1704109845111,-533.23681266,0.00035616,2]
[309770859,1704109845119,-500.0,0.00035616,2]
[309770860,1704109845129,-563.65241819,0.00035616,2]
[309770861,1704109845138,-551.17845679,0.00035616,2]
[309770862,1704109845147,-540.92526115,0.00035616,2]
[309770863,1704109845156,-564.33124965,0.00035616,2]
[309770864,1704109845165,-2476.07,0.00035616,2]
[309770865,1704109845174,-545.10657968,0.00035616,2]
[309770866,1704109845183,-500.0,0.00035616,2]
[309770867,1704109845192,-527.48116231,0.00035616,2]
[309770868,1704109845201,-316.83380926,0.00035616,2]
[309770869,1704109845210,-500.0,0.00035616,2]
[309770870,1704109845219,-538.19721794,0.00035616,2]
[309770871,1704109845228,-500.0,0.00035616,2]
[309770872,1704109845237,-525.79041593,0.00035616,2]
[309770873,1704109845247,-500.0,0.00035616,2]
[309770874,1704109845257,-500.0,0.00035616,2]
[309770875,1704109845267,-522.09516436,0.00035616,2]
[309770876,1704109845276,-928.23,0.00035616,2]
[309770877,1704109845286,-500.0,0.00035616,2]
[309770878,1704109845296,-500.0,0.00035616,2]
[309770879,1704109845305,-851.36,0.00035616,2]
[309770880,1704109845315,-527.14953177,0.00035616,2]
[309770881,1704109845326,-520.3611667,0.00035616,2]
[309770882,1704109845335,-546.45937387,0.00035616,2]
[309770883,1704109845344,-579.11508957,0.00035616,2]
[309770884,1704109845353,-500.0,0.00035616,2]
[309770885,1704109845362,-550.6913603,0.00035616,2]
[309770886,1704109845374,-500.0,0.00035616,2]
[309770887,1704109845383,-153.05179401,0.00035616,2]
[309770888,1704109845393,-500.0,0.00035616,2]
[309770889,1704109845402,-513.19634369,0.00035616,2]
[309770890,1704109845412,-500.0,0.00035616,2]
[309770891,1704109845421,-598.94011406,0.00035616,2]
[309770892,1704109845431,-513.90384237,0.00035616,2]
[309770894,1704109845570,-193.50210039,0.00035616,2]
[309770895,1704109845581,-500.0,0.00035616,2]
[309770896,1704109845590,-500.0,0.00035616,2]
[309770898,1704109845599,-540.13342272,0.00035616,2]
[309770899,1704109845608,-500.0,0.00035616,2]
[309770900,1704109845618,-552.07556212,0.00035616,2]
[309770901,1704109845628,-500.0,0.00035616,2]
[309770902,1704109845637,-500.0,0.00035616,2]
[309770903,1704109845646,-521.95165174,0.00035616,2]
[309770904,1704109845655,-500.0,0.00035616,2]
[309770905,1704109845665,-2601.12,0.00035616,2]
[309770906,1704109845674,-556.52149337,0.00035616,2]
[309770907,1704109845683,-500.0,0.00035616,2]
[309770908,1704109845692,-538.50352945,0.00035616,2]
[309770909,1704109845702,-534.24031245,0.00035616,2]
[309770910,1704109845711,-500.0,0.00035616,2]
[309770911,1704109845721,-563.82437244,0.00035616,2]
[309770912,1704109845730,-500.0,0.00035616,2]
[309770913,1704109845740,-524.95328006,0.00035616,2]
[309770914,1704109845749,-500.0,0.00035616,2]
[309770915,1704109845758,-500.0,0.00035616,2]
[309770916,1704109845767,-500.0,0.00035616,2]
[309770917,1704109845777,-535.1101114,0.00035616,2]
[309770918,1704109845786,-500.0,0.00035616,2]
[309770919,1704109845795,-500.0,0.00035616,2]
[309770920,1704109845804,-500.0,0.00035616,2]
[309770921,1704109845814,-500.0,0.00035616,2]
[309770922,1704109845824,-500.0,0.00035616,2]
[309770923,1704109845833,-500.0,0.00035616,2]
[309770924,1704109845843,-544.04984705,0.00035616,2]
[309770925,1704109845853,-500.0,0.00035616,2]
[309770926,1704109845863,-500.0,0.00035616,2]
[309770927,1704109845872,-516.50453952,0.00035616,2]
[309770928,1704109845882,-533.05,0.00035616,2]
[309770929,1704109845893,-159.42897635,0.00035616,2]
[309770930,1704109845902,-500.0,0.00035616,2]
[309770931,1704109845911,-500.0,0.00035616,2]
[309770932,1704109845920,-500.0,0.00035616,2]
[309770933,1704109845929,-523.4845566,0.00035616,2]
[309770934,1704109845938,-500.0,0.00035616,2]
[309770935,1704109845947,-719.76,0.00035616,2]
[309770936,1704109845956,-500.0,0.00035616,2]
[309770937,1704109845965,-500.0,0.00035616,2]
[309770938,1704109845974,-500.0,0.00035616,2]
[309770939,1704109845984,-500.0,0.00035616,2]
[309770940,1704109845993,-500.0,0.00035616,2]
[309770941,1704109846002,-500.0,0.00035616,2]
[309770942,1704109846011,-813.41,0.00035616,2]
[309770943,1704109846021,-500.0,0.00035616,2]
[309770944,1704109846031,-500.0,0.00035616,2]
[309770945,1704109846040,-511.79705475,0.00035616,2]
[309770946,1704109846050,-500.0,0.00035616,2]
[309770947,1704109846060,-558.99207317,0.00035616,2]
[309770948,1704109846070,-500.0,0.00035616,2]
[309770949,1704109846081,-500.0,0.00035616,2]
[309770950,1704109846094,-500.0,0.00035616,2]
[309770951,1704109846104,-572.09640543,0.00035616,2]
[309770952,1704109846114,-511.19955025,0.00035616,2]
[309770953,1704109846124,-306.05148685,0.00035616,2]
[309770954,1704109846134,-500.0,0.00035616,2]
[309770955,1704109846143,-500.0,0.00035616,2]
[309770956,1704109846152,-500.0,0.00035616,2]
[309770957,1704109846161,-169.55330797,0.00035616,2]
[309770958,1704109846171,-524.72206208,0.00035616,2]
[309770959,1704109846181,-531.02662424,0.00035616,2]
[309770960,1704109846190,-500.0,0.00035616,2]
[309770961,1704109846199,-537.69001731,0.00035616,2]
[309770962,1704109846208,-500.0,0.00035616,2]
[309770963,1704109846218,-405.80149017,0.00035616,2]
[309770964,1704109846227,-576.51676749,0.00035616,2]
[309770965,1704109846237,-500.0,0.00035616,2]
[309770966,1704109846246,-525.55253917,0.00035616,2]
[309770967,1704109846256,-500.0,0.00035616,2]
[309770968,1704109846265,-500.0,0.00035616,2]
[309770969,1704109846274,-181.7580679,0.00035616,2]
[309770970,1704109846283,-500.0,0.00035616,2]
[309770971,1704109846293,-500.0,0.00035616,2]
[309770972,1704109846302,-500.0,0.00035616,2]
[309770973,1704109846312,-591.79,0.00035616,2]
[309770974,1704109846323,-500.0,0.00035616,2]
[309770975,1704109846332,-544.06293079,0.00035616,2]
[309770976,1704109846341,-461.10031972,0.00035616,2]
[309770977,1704109846351,-743.24,0.00035616,2]
[309770978,1704109846361,-500.0,0.00035616,2]
[309770979,1704109846370,-500.0,0.00035616,2]
[309770980,1704109846379,-500.0,0.00035616,2]
[309770981,1704109846388,-500.0,0.00035616,2]
[309770982,1704109846397,-500.0,0.00035616,2]
[309770983,1704109846406,-533.02269763,0.00035616,2]
[309770984,1704109846416,-500.0,0.00035616,2]
[309770985,1704109846425,-524.76825118,0.00035616,2]
[309770986,1704109846434,-500.0,0.00035616,2]
[309770987,1704109846443,-500.0,0.00035616,2]
[309770988,1704109846453,-500.0,0.00035616,2]
[309770989,1704109846462,-500.0,0.00035616,2]
[309770990,1704109846471,-511.16207588,0.00035616,2]
[309770991,1704109846481,-163.87309171,0.00035616,2]
[309770992,1704109846494,-500.0,0.00035616,2]
[309770993,1704109846504,-500.0,0.00035616,2]
[309770994,1704109846513,-1336.86,0.00035616,2]
[309770995,1704109846522,-500.0,0.00035616,2]
[309770996,1704109846532,-500.0,0.00035616,2]
[309770997,1704109846541,-500.0,0.00035616,2]
[309770998,1704109846550,-1000.0,0.00035616,2]
[309770999,1704109846559,-281.12373739,0.00035616,2]
[309771000,1704109846569,-380.2938189,0.00035616,2]
[309771001,1704109846578,-500.0,0.00035616,2]
[309771002,1704109846587,-500.0,0.00035616,2]
[309771003,1704109846596,-538.62337198,0.00035616,2]
[309771004,1704109846605,-500.0,0.00035616,2]
[309771005,1704109846614,-500.0,0.00035616,2]
[309771006,1704109846622,-164.6862286,0.00035616,2]
[309771007,1704109846631,-500.0,0.00035616,2]
[309771008,1704109846641,-500.0,0.00035616,2]
[309771009,1704109846649,-500.0,0.00035616,2]
[309771010,1704109846659,-500.0,0.00035616,2]
[309771011,1704109846668,-500.0,0.00035616,2]
[309771012,1704109846680,-500.0,0.00035616,2]
[309771013,1704109846689,-500.0,0.00035616,2]
[309771014,1704109846698,-500.0,0.00035616,2]
[309771015,1704109846707,-500.0,0.00035616,2]
[309771016,1704109846716,-560.27042223,0.00035616,2]
[309771017,1704109846726,-500.0,0.00035616,2]
[309771018,1704109846735,-539.07091756,0.00035616,2]
[309771019,1704109846744,-516.21953376,0.00035616,2]
[309771020,1704109846753,-500.0,0.00035616,2]
[309771021,1704109846762,-500.0,0.00035616,2]
[309771022,1704109846771,-579.65504432,0.00035616,2]
[309771023,1704109846780,-1003.36,0.00035616,2]
[309771024,1704109846789,-500.0,0.00035616,2]
[309771025,1704109846799,-1027.98,0.00035616,2]
[309771026,1704109846808,-514.94762566,0.00035616,2]
[309771027,1704109846817,-500.0,0.00035616,2]
[309771028,1704109846826,-500.0,0.00035616,2]
[309771029,1704109846835,-500.0,0.00035616,2]
[309771030,1704109846845,-553.81616615,0.00035616,2]
[309771031,1704109846854,-367.61414732,0.00035616,2]
[309771032,1704109846864,-500.0,0.00035616,2]
[309771033,1704109846874,-2255.73,0.00035616,2]
[309771034,1704109846884,-500.0,0.00035616,2]
[309771035,1704109846894,-500.0,0.00035616,2]
[309771036,1704109846904,-552.423092,0.00035616,2]
[309771037,1704109846914,-500.0,0.00035616,2]
[309771038,1704109846923,-500.0,0.00035616,2]
[309771039,1704109846932,-500.0,0.00035616,2]
[309771040,1704109846941,-522.12917525,0.00035616,2]
[309771041,1704109846950,-500.0,0.00035616,2]
[309771042,1704109846959,-500.0,0.00035616,2]
[309771043,1704109846968,-508.18070667,0.00035616,2]
[309771044,1704109846977,-500.0,0.00035616,2]
[309771045,1704109846986,-500.0,0.00035616,2]
[309771046,1704109846995,-500.0,0.00035616,2]
[309771047,1704109847004,-500.0,0.00035616,2]
[309771048,1704109847013,-500.0,0.00035616,2]
[309771049,1704109847023,-534.48421704,0.00035616,2]
[309771050,1704109847032,-500.0,0.00035616,2]
[309771051,1704109847042,-500.0,0.00035616,2]
[309771052,1704109847053,-500.0,0.00035616,2]
[309771053,1704109847062,-500.0,0.00035616,2]
[309771054,1704109847073,-500.0,0.00035616,2]
[309771055,1704109847082,-500.0,0.00035616,2]
[309771056,1704109847092,-500.0,0.00035616,2]
[309771057,1704109847102,-500.0,0.00035616,2]
[309771058,1704109847113,-527.06508156,0.00035616,2]
[309771059,1704109847124,-547.97770326,0.00035616,2]
[309771060,1704109847133,-500.0,0.00035616,2]
[309771061,1704109847142,-269.90524531,0.00035616,2]
[309771062,1704109847151,-528.71372898,0.00035616,2]
[309771063,1704109847161,-500.0,0.00035616,2]
[309771064,1704109847170,-500.0,0.00035616,2]
[309771065,1704109847179,-1374.7,0.00035616,2]
[309771066,1704109847188,-513.08979383,0.00035616,2]
[309771067,1704109847197,-500.0,0.00035616,2]
[309771068,1704109847207,-538.58637113,0.00035616,2]
[309771069,1704109847216,-500.0,0.00035616,2]
[309771070,1704109847225,-500.0,0.00035616,2]
[309771071,1704109847235,-500.0,0.00035616,2]
[309771072,1704109847244,-500.0,0.00035616,2]
[309771073,1704109847253,-500.0,0.00035616,2]
[309771074,1704109847262,-500.0,0.00035616,2]
[309771075,1704109847271,-609.94156871,0.00035616,2]
[309771076,1704109847280,-500.0,0.00035616,2]
[309771077,1704109847290,-500.0,0.00035616,2]
[309771078,1704109847299,-5000.0,0.00035616,2]
[309771079,1704109847308,-500.0,0.00035616,2]
[309771080,1704109847317,-500.0,0.00035616,2]
[309771081,1704109847327,-190.11452287,0.00035616,2]
[309771082,1704109847336,-500.0,0.00035616,2]
[309771083,1704109847345,-504.58,0.00035616,2]
[309771084,1704109847354,-500.0,0.00035616,2]
[309771085,1704109847364,-500.0,0.00035616,2]
[309771086,1704109847373,-500.0,0.00035616,2]
[309771087,1704109847382,-3035.78,0.00035616,5]
[309771088,1704109847392,-500.0,0.00035616,2]
[309771089,1704109847401,-506.37269782,0.00035616,2]
[309771090,1704109847410,-500.0,0.00035616,2]
[309771091,1704109847419,-529.250285,0.00035616,2]
[309771092,1704109847429,-519.60144078,0.00035616,2]
[309771093,1704109847438,-500.0,0.00035616,2]
[309771094,1704109847447,-500.0,0.00035616,2]
[309771095,1704109847456,-500.0,0.00035616,2]
[309771096,1704109847466,-519.77302098,0.00035616,2]
[309771097,1704109847474,-500.0,0.00035616,2]
[309771098,1704109847483,-508.7164144,0.00035616,2]
[309771099,1704109847492,-500.0,0.00035616,2]
[309771100,1704109847502,-500.0,0.00035616,2]
[309771101,1704109847511,-500.0,0.00035616,2]
[309771102,1704109847520,-513.18271492,0.00035616,2]
[309771103,1704109847530,-500.0,0.00035616,2]
[309771104,1704109847539,-500.0,0.00035616,2]
[309771105,1704109847548,-500.0,0.00035616,2]
[309771106,1704109847557,-500.0,0.00035616,2]
[309771107,1704109847566,-501.29262173,0.00035616,2]
[309771108,1704109847575,-500.0,0.00035616,2]
[309771109,1704109847584,-510.23846329,0.00035616,2]
[309771110,1704109847593,-500.0,0.00035616,2]
[309771111,1704109847602,-500.0,0.00035616,2]
[309771112,1704109847612,-516.10736112,0.00035616,2]
[309771113,1704109847622,-3994.99,0.00035616,2]
[309771114,1704109847631,-3369.73,0.00035616,2]
[309771115,1704109847640,-521.83938012,0.00035616,2]
[309771116,1704109847649,-592.79062338,0.00035616,2]
[309771117,1704109847658,-500.0,0.00035616,2]
[309771118,1704109847667,-500.0,0.00035616,2]
[309771119,1704109847676,-680.31,0.00035616,2]
[309771120,1704109847685,-553.98131835,0.00035616,2]
[309771121,1704109847694,-526.71710881,0.00035616,2]
[309771122,1704109847703,-500.0,0.00035616,2]
[309771123,1704109847712,-500.0,0.00035616,2]
[309771124,1704109847722,-598.43,0.00035616,2]
[309771125,1704109847730,-520.83,0.00035616,2]
[309771126,1704109847740,-500.0,0.00035616,2]
[309771127,1704109847749,-500.0,0.00035616,2]
[309771128,1704109847758,-525.34879843,0.00035616,2]
[309771129,1704109847770,-500.0,0.00035616,2]
[309771130,1704109847779,-500.0,0.00035616,2]
[309771131,1704109847788,-539.00290049,0.00035616,2]
[309771132,1704109847797,-500.0,0.00035616,2]
[309771133,1704109847806,-287.96054149,0.00035616,2]
[309771134,1704109847816,-785.72,0.00035616,2]
[309771135,1704109847825,-526.27801624,0.00035616,2]
[309771136,1704109847834,-525.36738383,0.00035616,2]
[309771137,1704109847843,-500.0,0.00035616,2]
[309771138,1704109847854,-500.0,0.00035616,2]
[309771139,1704109847865,-500.0,0.00035616,2]
[309771140,1704109847876,-500.0,0.00035616,2]
[309771141,1704109847885,-500.0,0.00035616,2]
[309771142,1704109847895,-569.12926075,0.00035616,2]
[309771143,1704109847905,-514.96064579,0.00035616,2]
[309771144,1704109847914,-500.0,0.00035616,2]
[309771145,1704109847924,-576.21325255,0.00035616,2]
[309771146,1704109847934,-215.67209443,0.00035616,2]
[309771147,1704109847943,-500.0,0.00035616,2]
[309771148,1704109847954,-500.0,0.00035616,2]
[309771149,1704109847965,-500.0,0.00035616,2]
[309771150,1704109847975,-500.0,0.00035616,2]
[309771151,1704109847986,-500.00009165,0.00035616,2]
[309771152,1704109847996,-500.0,0.00035616,2]
[309771153,1704109848006,-500.43,0.00035616,2]
[309771154,1704109848015,-452.12164417,0.00035616,2]
[309771155,1704109848025,-500.0,0.00035616,2]
[309771156,1704109848034,-500.0,0.00035616,2]
[309771157,1704109848043,-500.0,0.00035616,2]
[309771158,1704109848052,-500.0,0.00035616,2]
[309771159,1704109848061,-500.0,0.00035616,2]
[309771160,1704109848070,-500.0,0.00035616,2]
[309771161,1704109848079,-546.01072,0.00035616,2]
[309771162,1704109848091,-500.0,0.00035616,2]
[309771163,1704109848100,-500.0,0.00035616,2]
[309771164,1704109848109,-517.36876619,0.00035616,2]
[309771165,1704109848119,-157.58489031,0.00035616,2]
[309771166,1704109848129,-500.0,0.00035616,2]
[309771167,1704109848138,-500.0,0.00035616,2]
[309771168,1704109848149,-521.17945254,0.00035616,2]
[309771169,1704109848158,-500.0,0.00035616,2]
[309771170,1704109848169,-525.18491014,0.00035616,2]
[309771171,1704109848178,-500.0,0.00035616,2]
[309771172,1704109848187,-500.0,0.00035616,2]
[309771173,1704109848196,-512.00370558,0.00035616,2]
[309771174,1704109848205,-500.0,0.00035616,2]
[309771175,1704109848214,-500.0,0.00035616,2]
[309771176,1704109848223,-546.55449468,0.00035616,2]
[309771177,1704109848233,-512.21294856,0.00035616,2]
[309771178,1704109848243,-3723.51,0.00035616,5]
[309771179,1704109848252,-533.36516971,0.00035616,2]
[309771180,1704109848261,-500.0,0.00035616,2]
[309771181,1704109848271,-603.16,0.00035616,2]
[309771182,1704109848280,-500.0,0.00035616,2]
[309771183,1704109848291,-500.0,0.00035616,2]
[309771184,1704109848301,-4833.67,0.00035616,2]
[309771185,1704109848310,-500.0,0.00035616,2]
[309771186,1704109848319,-500.0,0.00035616,2]
[309771187,1704109848329,-513.0274591,0.00035616,2]
[309771188,1704109848338,-500.0,0.00035616,2]
[309771189,1704109848348,-525.204234,0.00035616,2]
[309771190,1704109848357,-500.0,0.00035616,2]
[309771191,1704109848367,-538.88381708,0.00035616,2]
[309771192,1704109848376,-500.0,0.00035616,2]
[309771193,1704109848385,-500.0,0.00035616,2]
[309771194,1704109848395,-532.36449636,0.00035616,2]
[309771195,1704109848405,-512.43572295,0.00035616,2]
[309771196,1704109848414,-500.0,0.00035616,2]
[309771197,1704109848424,-515.35796696,0.00035616,2]
[309771198,1704109848566,-500.0,0.00035616,2]
[309771199,1704109848576,-500.0,0.00035616,2]
[309771200,1704109848585,-500.0,0.00035616,2]
[309771201,1704109848594,-500.0,0.00035616,2]
[309771202,1704109848603,-500.0,0.00035616,2]
[309771203,1704109848613,-516.40113545,0.00035616,2]
[309771204,1704109848625,-500.0,0.00035616,2]
[309771205,1704109848635,-533.18159534,0.00035616,2]
[309771206,1704109848644,-500.0,0.00035616,2]
[309771207,1704109848654,-516.7630162,0.00035616,2]
[309771208,1704109848663,-500.0,0.00035616,2]
[309771209,1704109848672,-613.53069258,0.00035616,2]
[309771210,1704109848681,-500.0,0.00035616,2]
[309771211,1704109848690,-500.0,0.00035616,2]
[309771212,1704109848700,-500.0,0.00035616,2]
[309771213,1704109848709,-500.0,0.00035616,2]
[309771214,1704109848719,-606.58,0.00035616,2]
[309771215,1704109848728,-1308.58,0.00035616,2]
[309771216,1704109848739,-500.0,0.00035616,2]
[309771217,1704109848748,-500.0,0.00035616,2]
[309771218,1704109848757,-500.0,0.00035616,2]
[309771219,1704109848766,-500.0,0.00035616,2]
[309771220,1704109848775,-512.5669903,0.00035616,2]
[309771221,1704109848786,-520.14532992,0.00035616,2]
[309771222,1704109848795,-616.87233258,0.00035616,2]
[309771223,1704109848804,-500.0,0.00035616,2]
[309771224,1704109848813,-669.06,0.00035616,2]
[309771225,1704109848822,-500.0,0.00035616,2]
[309771226,1704109848831,-500.0,0.00035616,2]
[309771227,1704109848841,-510.40104348,0.00035616,2]
[309771228,1704109848850,-535.67760326,0.00035616,2]
[309771229,1704109848859,-500.0,0.00035616,2]
[309771230,1704109848869,-535.4569683,0.00035616,2]
[309771231,1704109848878,-551.88,0.00035616,2]
[309771232,1704109848887,-500.0,0.00035616,2]
[309771233,1704109848896,-543.65794174,0.00035616,2]
[309771234,1704109848905,-500.0,0.00035616,2]
[309771235,1704109848915,-529.69913095,0.00035616,2]
[309771236,1704109848924,-526.41749383,0.00035616,2]